[Event "Early-Titled-Tuesday-Blitz-May-14-2024"]
[Site "Chess.com"]
[Date "2024.05.14"]
[Round "2"]
[White "TigranMukhutdinov"]
[Black "Fjal"]
[Result "1-0"]
[WhiteElo "2713"]
[BlackElo "2334"]
[TimeControl "180+1"]
[EndTime "8:16:31 PDT"]
[Termination "TigranMukhutdinov won by resignation"]

1. e4 {[%clk 0:03:00.9]} 1... d6 {[%clk 0:02:54.9]} 2. d4 {[%clk 0:02:53]} 2...
g6 {[%clk 0:02:54.5]} 3. Nc3 {[%clk 0:02:53]} 3... Bg7 {[%clk 0:02:54.9]} 4. f4
{[%clk 0:02:53.6]} 4... Nd7 {[%clk 0:02:47.4]} 5. Nf3 {[%clk 0:02:53.3]} 5... a6
{[%clk 0:02:47.4]} 6. Bd3 {[%clk 0:02:52.1]} 6... b5 {[%clk 0:02:47.4]} 7. e5
{[%clk 0:02:52.4]} 7... Bb7 {[%clk 0:02:45.7]} 8. Qe2 {[%clk 0:02:50.9]} 8...
Nh6 {[%clk 0:02:42.3]} 9. O-O {[%clk 0:02:42.1]} 9... O-O {[%clk 0:02:03.2]} 10.
Be4 {[%clk 0:02:34.1]} 10... Bxe4 {[%clk 0:02:00.2]} 11. Nxe4 {[%clk 0:02:35]}
11... c5 {[%clk 0:01:55.7]} 12. e6 {[%clk 0:02:19.7]} 12... Nf6 {[%clk
0:01:45.7]} 13. Neg5 {[%clk 0:02:16.3]} 13... cxd4 {[%clk 0:01:18.4]} 14. exf7+
{[%clk 0:02:14.4]} 14... Nxf7 {[%clk 0:01:10.9]} 15. Ne6 {[%clk 0:02:14.5]}
15... Qb6 {[%clk 0:01:11.2]} 16. Nxf8 {[%clk 0:02:05.9]} 16... Rxf8 {[%clk
0:01:11.4]} 17. Kh1 {[%clk 0:01:52.5]} 17... Nd5 {[%clk 0:00:56.1]} 18. Qe4
{[%clk 0:01:47.8]} 18... Nb4 {[%clk 0:00:40.8]} 19. Bd2 {[%clk 0:01:45.3]} 19...
Nc6 {[%clk 0:00:39.1]} 20. Rae1 {[%clk 0:01:39.3]} 20... Qc5 {[%clk 0:00:27.6]}
21. a3 {[%clk 0:01:38.3]} 21... e5 {[%clk 0:00:19.7]} 22. fxe5 {[%clk
0:01:36.2]} 22... dxe5 {[%clk 0:00:20.6]} 23. Ng5 {[%clk 0:01:23]} 23... Nd6
{[%clk 0:00:18.1]} 24. Rxf8+ {[%clk 0:01:23.6]} 24... Bxf8 {[%clk 0:00:17.1]}
25. Qd3 {[%clk 0:01:19.8]} 25... Qd5 {[%clk 0:00:15.8]} 26. Ne4 {[%clk
0:01:20.1]} 26... Nc4 {[%clk 0:00:15.7]} 27. Nf6+ {[%clk 0:01:17.9]} 1-0

[Event "Early-Titled-Tuesday-Blitz-May-14-2024"]
[Site "Chess.com"]
[Date "2024.05.14"]
[Round "2"]
[White "lucasmito"]
[Black "HanSchut"]
[Result "1-0"]
[WhiteElo "2728"]
[BlackElo "2400"]
[TimeControl "180+1"]
[EndTime "8:16:36 PDT"]
[Termination "lucasmito won by resignation"]

1. e4 {[%clk 0:02:59.8]} 1... c5 {[%clk 0:02:59.4]} 2. Nf3 {[%clk 0:02:59.5]}
2... d6 {[%clk 0:02:59.9]} 3. d4 {[%clk 0:02:58.8]} 3... cxd4 {[%clk 0:03:00.8]}
4. Nxd4 {[%clk 0:02:59.3]} 4... Nf6 {[%clk 0:03:01.5]} 5. Nc3 {[%clk 0:02:59.8]}
5... a6 {[%clk 0:03:02.1]} 6. a3 {[%clk 0:03:00.1]} 6... g6 {[%clk 0:03:01.5]}
7. Be3 {[%clk 0:02:59.4]} 7... Bg7 {[%clk 0:03:02]} 8. f3 {[%clk 0:03:00.2]}
8... O-O {[%clk 0:03:01.9]} 9. Qd2 {[%clk 0:03:01]} 9... Nc6 {[%clk 0:03:01.9]}
10. O-O-O {[%clk 0:03:01.5]} 10... d5 {[%clk 0:03:01.7]} 11. Kb1 {[%clk
0:03:02.2]} 11... e5 {[%clk 0:02:51.3]} 12. Nxc6 {[%clk 0:03:01.7]} 12... bxc6
{[%clk 0:02:52]} 13. exd5 {[%clk 0:03:02.6]} 13... cxd5 {[%clk 0:02:52.1]} 14.
Nxd5 {[%clk 0:03:03.4]} 14... Nxd5 {[%clk 0:02:49.2]} 15. Qxd5 {[%clk
0:03:04.3]} 15... Qc7 {[%clk 0:02:28.4]} 16. Qxa8 {[%clk 0:03:04.2]} 16... Bf5
{[%clk 0:02:28.3]} 17. Qxf8+ {[%clk 0:03:00.8]} 17... Kxf8 {[%clk 0:02:07.8]}
18. Bd3 {[%clk 0:03:01.7]} 18... Be6 {[%clk 0:01:54.5]} 19. h4 {[%clk
0:02:53.3]} 19... h6 {[%clk 0:01:40.4]} 20. h5 {[%clk 0:02:51.6]} 20... g5
{[%clk 0:01:40.6]} 21. g4 {[%clk 0:02:50.7]} 21... Bd5 {[%clk 0:01:21.5]} 22.
Be4 {[%clk 0:02:41.7]} 22... Bxe4 {[%clk 0:01:21.9]} 23. fxe4 {[%clk 0:02:42.6]}
23... Bf6 {[%clk 0:01:06.9]} 24. Rhf1 {[%clk 0:02:40.2]} 24... Be7 {[%clk
0:01:03.7]} 25. Bc1 {[%clk 0:02:16.3]} 25... Qb7 {[%clk 0:01:01.2]} 26. Rd5
{[%clk 0:02:14]} 26... f6 {[%clk 0:00:52]} 27. Rxe5 {[%clk 0:02:13.4]} 27... Kf7
{[%clk 0:00:42.7]} 28. b3 {[%clk 0:02:09.1]} 28... a5 {[%clk 0:00:36.8]} 29.
Rxa5 {[%clk 0:02:03.1]} 29... Qxe4 {[%clk 0:00:36.3]} 30. Bb2 {[%clk 0:02:02.6]}
30... Qxg4 {[%clk 0:00:24.7]} 31. Ra7 {[%clk 0:01:52.5]} 31... Qe2 {[%clk
0:00:09.9]} 32. Rxf6+ {[%clk 0:01:49.3]} 32... Ke8 {[%clk 0:00:10.6]} 33. Rxh6
{[%clk 0:01:44.5]} 33... g4 {[%clk 0:00:10]} 34. Rh8+ {[%clk 0:01:42.7]} 34...
Kf7 {[%clk 0:00:09.1]} 35. Rh7+ {[%clk 0:01:43.1]} 35... Kf8 {[%clk 0:00:09.1]}
36. Rhxe7 {[%clk 0:01:44]} 36... Qxe7 {[%clk 0:00:08.6]} 37. Rxe7 {[%clk
0:01:43.7]} 37... Kxe7 {[%clk 0:00:09.5]} 38. Bd4 {[%clk 0:01:44.2]} 38... Ke6
{[%clk 0:00:09.4]} 39. Bg1 {[%clk 0:01:45.1]} 1-0

[Event "Early-Titled-Tuesday-Blitz-May-14-2024"]
[Site "Chess.com"]
[Date "2024.05.14"]
[Round "2"]
[White "kingofthenil"]
[Black "MaxLeto"]
[Result "1-0"]
[WhiteElo "2834"]
[BlackElo "2421"]
[TimeControl "180+1"]
[EndTime "8:16:37 PDT"]
[Termination "kingofthenil won by resignation"]

1. d4 {[%clk 0:02:45.8]} 1... d5 {[%clk 0:02:59.9]} 2. Bf4 {[%clk 0:02:42.6]}
2... Nf6 {[%clk 0:02:59.4]} 3. e3 {[%clk 0:02:39]} 3... c5 {[%clk 0:02:59.5]} 4.
Nc3 {[%clk 0:02:37.6]} 4... cxd4 {[%clk 0:02:49]} 5. exd4 {[%clk 0:02:26.1]}
5... a6 {[%clk 0:02:46.8]} 6. h3 {[%clk 0:02:19.5]} 6... Bf5 {[%clk 0:02:43.4]}
7. Nf3 {[%clk 0:02:17.3]} 7... Nc6 {[%clk 0:02:36.5]} 8. a3 {[%clk 0:02:16.7]}
8... h6 {[%clk 0:02:33.2]} 9. Bd3 {[%clk 0:02:16.4]} 9... Bxd3 {[%clk
0:02:32.3]} 10. Qxd3 {[%clk 0:02:17.3]} 10... e6 {[%clk 0:02:33.2]} 11. O-O
{[%clk 0:02:16.3]} 11... Bd6 {[%clk 0:02:33.7]} 12. Ne5 {[%clk 0:02:10.5]} 12...
Rc8 {[%clk 0:02:30.3]} 13. Rfe1 {[%clk 0:02:06.9]} 13... O-O {[%clk 0:02:27.2]}
14. Rad1 {[%clk 0:02:06.4]} 14... Qb6 {[%clk 0:02:24.7]} 15. Na4 {[%clk
0:01:54.6]} 15... Qa5 {[%clk 0:02:16.7]} 16. Nxc6 {[%clk 0:01:51.8]} 16... Rxc6
{[%clk 0:02:09.6]} 17. Bxd6 {[%clk 0:01:52.7]} 17... Rxd6 {[%clk 0:02:10.5]} 18.
Nc5 {[%clk 0:01:53.6]} 18... Qc7 {[%clk 0:02:03.5]} 19. Qg3 {[%clk 0:01:53.7]}
19... Rfd8 {[%clk 0:01:52.9]} 20. c3 {[%clk 0:01:52.8]} 20... a5 {[%clk
0:01:51.2]} 21. Re3 {[%clk 0:01:47]} 21... Rc6 {[%clk 0:01:34.1]} 22. Qh4 {[%clk
0:01:45.8]} 22... b6 {[%clk 0:01:24.6]} 23. Nd3 {[%clk 0:01:45.3]} 23... Ne4
{[%clk 0:01:23.8]} 24. Rde1 {[%clk 0:01:42.2]} 24... b5 {[%clk 0:01:12.3]} 25.
Rf3 {[%clk 0:01:42.1]} 25... Ng5 {[%clk 0:01:05.6]} 26. Rg3 {[%clk 0:01:41.4]}
26... Ne4 {[%clk 0:00:56.2]} 27. Rxe4 {[%clk 0:01:37.6]} 27... dxe4 {[%clk
0:00:57.1]} 28. Ne5 {[%clk 0:01:38.5]} 28... Rcd6 {[%clk 0:00:39.7]} 29. Qf6
{[%clk 0:01:35.9]} 29... g5 {[%clk 0:00:12.3]} 30. Qxh6 {[%clk 0:01:33.9]} 30...
f6 {[%clk 0:00:08]} 31. Qxf6 {[%clk 0:01:34.5]} 1-0

[Event "Early-Titled-Tuesday-Blitz-May-14-2024"]
[Site "Chess.com"]
[Date "2024.05.14"]
[Round "2"]
[White "Yaacovn"]
[Black "Zarinur"]
[Result "1-0"]
[WhiteElo "2812"]
[BlackElo "2560"]
[TimeControl "180+1"]
[EndTime "8:16:38 PDT"]
[Termination "Yaacovn won by checkmate"]

1. d4 {[%clk 0:02:58.5]} 1... Nf6 {[%clk 0:02:58.3]} 2. e3 {[%clk 0:02:58.3]}
2... e6 {[%clk 0:02:53.7]} 3. Bd3 {[%clk 0:02:50.3]} 3... d5 {[%clk 0:02:51]} 4.
Nd2 {[%clk 0:02:49.9]} 4... b6 {[%clk 0:02:50.9]} 5. f4 {[%clk 0:02:48.8]} 5...
Bb7 {[%clk 0:02:49.3]} 6. Ngf3 {[%clk 0:02:47.7]} 6... Bd6 {[%clk 0:02:43.9]} 7.
Ne5 {[%clk 0:02:47.1]} 7... a6 {[%clk 0:02:37.9]} 8. Qf3 {[%clk 0:02:46.1]} 8...
Nc6 {[%clk 0:02:21.6]} 9. c3 {[%clk 0:02:45.1]} 9... Ne7 {[%clk 0:02:09.7]} 10.
O-O {[%clk 0:02:42.3]} 10... h5 {[%clk 0:01:59.6]} 11. b3 {[%clk 0:02:41.7]}
11... h4 {[%clk 0:01:52.2]} 12. Bb2 {[%clk 0:02:41.3]} 12... c5 {[%clk
0:01:35.7]} 13. Qe2 {[%clk 0:02:32.3]} 13... Ne4 {[%clk 0:01:17.5]} 14. Bxe4
{[%clk 0:02:30.6]} 14... dxe4 {[%clk 0:01:16.9]} 15. Ndc4 {[%clk 0:02:29.8]}
15... f6 {[%clk 0:01:14.7]} 16. Nxd6+ {[%clk 0:02:28.4]} 16... Qxd6 {[%clk
0:01:13.4]} 17. Nc4 {[%clk 0:02:27.5]} 17... Qc7 {[%clk 0:01:12.3]} 18. dxc5
{[%clk 0:02:27.2]} 18... bxc5 {[%clk 0:01:07.8]} 19. Rad1 {[%clk 0:02:26.6]}
19... Bd5 {[%clk 0:01:07.4]} 20. Nd2 {[%clk 0:02:16.7]} 20... Kf7 {[%clk
0:01:00.6]} 21. c4 {[%clk 0:02:10.2]} 21... Bb7 {[%clk 0:00:59.2]} 22. Nb1
{[%clk 0:02:09.3]} 22... Nf5 {[%clk 0:00:36.8]} 23. Ba3 {[%clk 0:02:08.4]} 23...
Rae8 {[%clk 0:00:23.5]} 24. Nc3 {[%clk 0:02:08.1]} 24... Rd8 {[%clk 0:00:08]}
25. Na4 {[%clk 0:02:07.4]} 25... Rd3 {[%clk 0:00:06.7]} 26. Nxc5 {[%clk
0:02:02.1]} 26... Rxe3 {[%clk 0:00:04.7]} 27. Qf2 {[%clk 0:02:02.5]} 27... Bc6
{[%clk 0:00:02.9]} 28. Rd2 {[%clk 0:01:54.4]} 28... Qc8 {[%clk 0:00:03.2]} 29.
Rfd1 {[%clk 0:01:53.8]} 29... Rc3 {[%clk 0:00:03.9]} 30. Qe1 {[%clk 0:01:50.9]}
30... Rh6 {[%clk 0:00:04.3]} 31. Rd7+ {[%clk 0:01:50.5]} 31... Bxd7 {[%clk
0:00:04]} 32. Rxd7+ {[%clk 0:01:51.4]} 32... Qxd7 {[%clk 0:00:02.3]} 33. Nxd7
{[%clk 0:01:50.8]} 33... Rd3 {[%clk 0:00:02.8]} 34. Nc5 {[%clk 0:01:49.6]} 34...
Rd8 {[%clk 0:00:02.3]} 35. Qxe4 {[%clk 0:01:48.6]} 35... Rg6 {[%clk 0:00:02.4]}
36. Qxe6+ {[%clk 0:01:47.6]} 36... Kf8 {[%clk 0:00:02]} 37. Nd7# {[%clk
0:01:47.8]} 1-0

[Event "Early-Titled-Tuesday-Blitz-May-14-2024"]
[Site "Chess.com"]
[Date "2024.05.14"]
[Round "2"]
[White "kekic76"]
[Black "Vesper2018"]
[Result "0-1"]
[WhiteElo "2328"]
[BlackElo "2548"]
[TimeControl "180+1"]
[EndTime "8:16:41 PDT"]
[Termination "Vesper2018 won on time"]

1. c4 {[%clk 0:03:00.9]} 1... Nf6 {[%clk 0:02:59.1]} 2. Nc3 {[%clk 0:02:59.9]}
2... g6 {[%clk 0:02:59.4]} 3. Nf3 {[%clk 0:03:00.2]} 3... Bg7 {[%clk 0:02:59.6]}
4. g3 {[%clk 0:03:00.7]} 4... O-O {[%clk 0:02:59.5]} 5. Bg2 {[%clk 0:03:01.2]}
5... d6 {[%clk 0:02:59.9]} 6. O-O {[%clk 0:03:01.7]} 6... e5 {[%clk 0:02:58.6]}
7. d3 {[%clk 0:02:59.1]} 7... Nc6 {[%clk 0:02:58.3]} 8. Bd2 {[%clk 0:02:59.1]}
8... Re8 {[%clk 0:02:54.7]} 9. e4 {[%clk 0:02:58.9]} 9... Nd4 {[%clk 0:02:50.1]}
10. Nxd4 {[%clk 0:02:57.9]} 10... exd4 {[%clk 0:02:50.1]} 11. Nd5 {[%clk
0:02:57.5]} 11... Nxd5 {[%clk 0:02:46.9]} 12. cxd5 {[%clk 0:02:47.4]} 12... c5
{[%clk 0:02:46.6]} 13. dxc6 {[%clk 0:02:32.7]} 13... bxc6 {[%clk 0:02:46.5]} 14.
Rc1 {[%clk 0:02:26.6]} 14... c5 {[%clk 0:02:46.6]} 15. b4 {[%clk 0:02:26.2]}
15... cxb4 {[%clk 0:02:31.4]} 16. Bxb4 {[%clk 0:02:22.6]} 16... Rb8 {[%clk
0:02:31.5]} 17. a3 {[%clk 0:02:10.4]} 17... a5 {[%clk 0:02:16.9]} 18. Bd2 {[%clk
0:02:09.8]} 18... Ba6 {[%clk 0:02:16.6]} 19. Bf4 {[%clk 0:02:03.2]} 19... Bb5
{[%clk 0:01:53.9]} 20. a4 {[%clk 0:01:53.8]} 20... Ba6 {[%clk 0:01:49]} 21. Rc6
{[%clk 0:01:53.3]} 21... Rb6 {[%clk 0:01:49]} 22. Rxb6 {[%clk 0:01:05.6]} 22...
Qxb6 {[%clk 0:01:48.5]} 23. Qb1 {[%clk 0:01:05.7]} 23... Qxb1 {[%clk 0:01:45.9]}
24. Rxb1 {[%clk 0:01:05]} 24... Bxd3 {[%clk 0:01:46.5]} 25. Rb7 {[%clk
0:00:44.5]} 25... Bc2 {[%clk 0:01:42.4]} 26. Bxd6 {[%clk 0:00:36]} 26... d3
{[%clk 0:01:38.5]} 27. Bf4 {[%clk 0:00:36]} 27... Bxa4 {[%clk 0:01:34.8]} 28.
Ra7 {[%clk 0:00:31.6]} 28... Bc3 {[%clk 0:01:32.9]} 29. Rc7 {[%clk 0:00:24.2]}
29... d2 {[%clk 0:01:32.7]} 0-1

[Event "Early-Titled-Tuesday-Blitz-May-14-2024"]
[Site "Chess.com"]
[Date "2024.05.14"]
[Round "2"]
[White "Good_Knight_Kiss"]
[Black "Stanbad1"]
[Result "0-1"]
[WhiteElo "2357"]
[BlackElo "2595"]
[TimeControl "180+1"]
[EndTime "8:16:43 PDT"]
[Termination "Stanbad1 won by resignation"]

1. e4 {[%clk 0:03:00.9]} 1... e6 {[%clk 0:02:29.4]} 2. d4 {[%clk 0:02:56.9]}
2... d5 {[%clk 0:02:28.9]} 3. Nc3 {[%clk 0:02:42.1]} 3... Nf6 {[%clk 0:02:28]}
4. Bg5 {[%clk 0:02:41.4]} 4... Bb4 {[%clk 0:02:27.7]} 5. e5 {[%clk 0:02:40.4]}
5... h6 {[%clk 0:02:26.8]} 6. Be3 {[%clk 0:02:40]} 6... Ne4 {[%clk 0:02:26.5]}
7. Qg4 {[%clk 0:02:39.4]} 7... g6 {[%clk 0:02:23]} 8. a3 {[%clk 0:02:35.1]} 8...
Bxc3+ {[%clk 0:02:21.5]} 9. bxc3 {[%clk 0:02:35.1]} 9... h5 {[%clk 0:02:19.3]}
10. Qf4 {[%clk 0:02:32.6]} 10... g5 {[%clk 0:02:19.6]} 11. Qf3 {[%clk
0:02:32.7]} 11... c5 {[%clk 0:02:19.8]} 12. Bd3 {[%clk 0:02:28.2]} 12... Nxc3
{[%clk 0:02:18.7]} 13. dxc5 {[%clk 0:02:28]} 13... d4 {[%clk 0:02:16.8]} 14. Bd2
{[%clk 0:02:25.8]} 14... Bd7 {[%clk 0:02:15.3]} 15. Bxc3 {[%clk 0:02:15.8]}
15... dxc3 {[%clk 0:02:03.6]} 16. Ne2 {[%clk 0:02:11.2]} 16... Bc6 {[%clk
0:02:02.1]} 17. Be4 {[%clk 0:02:11]} 17... Qa5 {[%clk 0:02:01.4]} 18. Qxc3
{[%clk 0:02:05.2]} 18... Qa4 {[%clk 0:01:57.2]} 19. Bxc6+ {[%clk 0:01:47.4]}
19... Nxc6 {[%clk 0:01:55.9]} 20. Rd1 {[%clk 0:01:34.3]} 20... Qe4 {[%clk
0:01:52.9]} 21. f3 {[%clk 0:01:27.2]} 21... Qxe5 {[%clk 0:01:51.5]} 22. Qxe5
{[%clk 0:01:05.6]} 22... Nxe5 {[%clk 0:01:52.4]} 23. f4 {[%clk 0:01:01.9]} 23...
gxf4 {[%clk 0:01:47.4]} 24. Nxf4 {[%clk 0:01:02.8]} 24... Ke7 {[%clk 0:01:47.6]}
25. Nd3 {[%clk 0:00:54.9]} 25... Nc4 {[%clk 0:01:45.8]} 26. a4 {[%clk
0:00:52.4]} 26... Rag8 {[%clk 0:01:43.1]} 27. Kf2 {[%clk 0:00:49.5]} 27... Rg5
{[%clk 0:01:40.1]} 28. Rhe1 {[%clk 0:00:43.9]} 28... Rhg8 {[%clk 0:01:38]} 29.
g3 {[%clk 0:00:37.2]} 29... h4 {[%clk 0:01:37]} 30. Re4 {[%clk 0:00:37.5]} 30...
hxg3+ {[%clk 0:01:35.7]} 31. hxg3 {[%clk 0:00:38.4]} 31... Na5 {[%clk
0:01:24.8]} 32. g4 {[%clk 0:00:33.6]} 32... Rxg4 {[%clk 0:01:22.6]} 33. Rxg4
{[%clk 0:00:32.5]} 33... Rxg4 {[%clk 0:01:23.5]} 34. Ke3 {[%clk 0:00:23.9]}
34... Rxa4 {[%clk 0:01:20.8]} 0-1

[Event "Early-Titled-Tuesday-Blitz-May-14-2024"]
[Site "Chess.com"]
[Date "2024.05.14"]
[Round "2"]
[White "UF_10"]
[Black "Pumpkin_in_moonlight"]
[Result "1-0"]
[WhiteElo "2495"]
[BlackElo "2204"]
[TimeControl "180+1"]
[EndTime "8:16:44 PDT"]
[Termination "UF_10 won on time"]

1. e4 {[%clk 0:03:00.9]} 1... e5 {[%clk 0:02:58.8]} 2. Nf3 {[%clk 0:03:00.6]}
2... Nc6 {[%clk 0:02:58.7]} 3. Bb5 {[%clk 0:03:00.6]} 3... a6 {[%clk 0:02:58.1]}
4. Ba4 {[%clk 0:03:01]} 4... Nf6 {[%clk 0:02:57.3]} 5. d3 {[%clk 0:02:58.2]}
5... Bc5 {[%clk 0:02:36.5]} 6. O-O {[%clk 0:02:55.3]} 6... b5 {[%clk 0:02:27.4]}
7. Bb3 {[%clk 0:02:53.5]} 7... h6 {[%clk 0:02:18.4]} 8. a4 {[%clk 0:02:41.9]}
8... Bb7 {[%clk 0:02:12.9]} 9. Nc3 {[%clk 0:02:41.1]} 9... b4 {[%clk 0:01:58.3]}
10. Nd5 {[%clk 0:02:41.4]} 10... O-O {[%clk 0:01:54.1]} 11. Be3 {[%clk
0:02:37.8]} 11... Bxe3 {[%clk 0:01:39.9]} 12. fxe3 {[%clk 0:02:38.7]} 12... d6
{[%clk 0:01:18.3]} 13. Qe1 {[%clk 0:02:24.1]} 13... Na5 {[%clk 0:01:07.6]} 14.
Qxb4 {[%clk 0:02:17.2]} 14... Nxb3 {[%clk 0:00:57.1]} 15. Nxf6+ {[%clk 0:02:12]}
15... Qxf6 {[%clk 0:00:55.4]} 16. Qxb3 {[%clk 0:02:11]} 16... Rab8 {[%clk
0:00:49.1]} 17. Qc3 {[%clk 0:02:10.7]} 17... Qe7 {[%clk 0:00:43.9]} 18. Rf2
{[%clk 0:02:06.5]} 18... Bc8 {[%clk 0:00:31.4]} 19. Raf1 {[%clk 0:02:04.7]}
19... Be6 {[%clk 0:00:31.6]} 20. d4 {[%clk 0:01:57.5]} 20... f6 {[%clk 0:00:27]}
21. Nh4 {[%clk 0:01:53]} 21... Rb7 {[%clk 0:00:18.6]} 22. Ng6 {[%clk 0:01:52.6]}
22... Qe8 {[%clk 0:00:16.6]} 23. Nxf8 {[%clk 0:01:52.7]} 23... Qxf8 {[%clk
0:00:17]} 24. dxe5 {[%clk 0:01:53.1]} 24... dxe5 {[%clk 0:00:17.4]} 25. Qc6
{[%clk 0:01:50.8]} 25... Rb6 {[%clk 0:00:14.9]} 26. Qxc7 {[%clk 0:01:47.7]}
26... Rxb2 {[%clk 0:00:15]} 27. Qxe5 {[%clk 0:01:46.5]} 27... fxe5 {[%clk
0:00:06.3]} 28. Rxf8+ {[%clk 0:01:46.4]} 28... Kh7 {[%clk 0:00:07.1]} 29. Re8
{[%clk 0:01:45.2]} 29... Bc4 {[%clk 0:00:06]} 30. Re1 {[%clk 0:01:44.9]} 30...
Rxc2 {[%clk 0:00:03.9]} 31. Rxe5 {[%clk 0:01:44.9]} 31... Bb3 {[%clk 0:00:03.4]}
32. a5 {[%clk 0:01:45]} 32... Bc4 {[%clk 0:00:03.2]} 33. Rc5 {[%clk 0:01:44.8]}
1-0

[Event "Early-Titled-Tuesday-Blitz-May-14-2024"]
[Site "Chess.com"]
[Date "2024.05.14"]
[Round "2"]
[White "Sasha_Solovev_777"]
[Black "Siemba"]
[Result "0-1"]
[WhiteElo "2185"]
[BlackElo "2487"]
[TimeControl "180+1"]
[EndTime "8:16:45 PDT"]
[Termination "Siemba won by resignation"]

1. e4 {[%clk 0:02:52.9]} 1... g6 {[%clk 0:02:58.9]} 2. d4 {[%clk 0:02:52.6]}
2... Bg7 {[%clk 0:02:59.2]} 3. Nc3 {[%clk 0:02:52.8]} 3... d6 {[%clk 0:02:59.8]}
4. Be3 {[%clk 0:02:52.7]} 4... a6 {[%clk 0:02:58.4]} 5. Qd2 {[%clk 0:02:52.4]}
5... b5 {[%clk 0:02:59]} 6. a3 {[%clk 0:02:51]} 6... Bb7 {[%clk 0:02:59.1]} 7.
h4 {[%clk 0:02:49.3]} 7... Nd7 {[%clk 0:02:59.7]} 8. h5 {[%clk 0:02:48.4]} 8...
Rc8 {[%clk 0:02:51.6]} 9. Nf3 {[%clk 0:02:30.6]} 9... c5 {[%clk 0:02:49.7]} 10.
h6 {[%clk 0:02:27.3]} 10... Bf6 {[%clk 0:02:49]} 11. Be2 {[%clk 0:01:59.5]}
11... cxd4 {[%clk 0:02:35.6]} 12. Bxd4 {[%clk 0:01:56.5]} 12... Nc5 {[%clk
0:02:32.3]} 13. Bd3 {[%clk 0:01:30.6]} 13... e5 {[%clk 0:02:23.6]} 14. Be3
{[%clk 0:01:25.4]} 14... Ne7 {[%clk 0:02:23.2]} 15. Bg5 {[%clk 0:01:13.8]} 15...
Bxg5 {[%clk 0:02:21]} 16. Qxg5 {[%clk 0:01:12.8]} 16... f5 {[%clk 0:01:42.1]}
17. exf5 {[%clk 0:00:49.5]} 17... e4 {[%clk 0:01:41.2]} 18. f6 {[%clk
0:00:19.7]} 18... Nf5 {[%clk 0:01:41.3]} 19. O-O-O {[%clk 0:00:14.1]} 19... exd3
{[%clk 0:01:39]} 20. Rhe1+ {[%clk 0:00:13.4]} 20... Kf7 {[%clk 0:01:37.8]} 21.
g4 {[%clk 0:00:06.6]} 21... dxc2 {[%clk 0:01:23.3]} 22. gxf5 {[%clk 0:00:00.4]}
22... cxd1=Q+ {[%clk 0:01:13.6]} 23. Kxd1 {[%clk 0:00:01.3]} 23... Bxf3+ {[%clk
0:01:11]} 0-1

[Event "Early-Titled-Tuesday-Blitz-May-14-2024"]
[Site "Chess.com"]
[Date "2024.05.14"]
[Round "2"]
[White "Alonmindlin"]
[Black "ChEsper99"]
[Result "1-0"]
[WhiteElo "2694"]
[BlackElo "2277"]
[TimeControl "180+1"]
[EndTime "8:16:47 PDT"]
[Termination "Alonmindlin won by checkmate"]

1. e4 {[%clk 0:03:00.9]} 1... c6 {[%clk 0:02:59.4]} 2. c4 {[%clk 0:03:00.7]}
2... d5 {[%clk 0:02:58.3]} 3. cxd5 {[%clk 0:03:01.6]} 3... cxd5 {[%clk
0:02:59.1]} 4. exd5 {[%clk 0:03:02.5]} 4... Nf6 {[%clk 0:02:55]} 5. Nc3 {[%clk
0:03:03.4]} 5... Nxd5 {[%clk 0:02:52.2]} 6. Nf3 {[%clk 0:03:03.9]} 6... Nc6
{[%clk 0:02:47.5]} 7. Bb5 {[%clk 0:03:03]} 7... g6 {[%clk 0:02:43.7]} 8. Qa4
{[%clk 0:03:00.6]} 8... Nb6 {[%clk 0:02:04.5]} 9. Qh4 {[%clk 0:02:54.1]} 9...
Bg7 {[%clk 0:01:57.8]} 10. d4 {[%clk 0:02:54]} 10... a6 {[%clk 0:01:47.3]} 11.
Bxc6+ {[%clk 0:02:53.6]} 11... bxc6 {[%clk 0:01:48.2]} 12. Bh6 {[%clk
0:02:53.2]} 12... Bf6 {[%clk 0:01:38.6]} 13. Bg5 {[%clk 0:02:53.2]} 13... Bxg5
{[%clk 0:01:34.5]} 14. Nxg5 {[%clk 0:02:51.1]} 14... e6 {[%clk 0:01:10.3]} 15.
Qg3 {[%clk 0:02:36.4]} 15... Nd5 {[%clk 0:01:07.8]} 16. O-O {[%clk 0:02:35.2]}
16... Nxc3 {[%clk 0:00:47.2]} 17. bxc3 {[%clk 0:02:34.5]} 17... O-O {[%clk
0:00:44.8]} 18. Ne4 {[%clk 0:02:33]} 18... Kg7 {[%clk 0:00:42.3]} 19. Rab1
{[%clk 0:02:26.7]} 19... Qd5 {[%clk 0:00:33.9]} 20. Nc5 {[%clk 0:02:23.4]} 20...
a5 {[%clk 0:00:26.5]} 21. Rb6 {[%clk 0:02:18.2]} 21... Re8 {[%clk 0:00:17.2]}
22. Re1 {[%clk 0:02:13.3]} 22... e5 {[%clk 0:00:15.2]} 23. Rxe5 {[%clk 0:02:13]}
23... Rxe5 {[%clk 0:00:15]} 24. Qxe5+ {[%clk 0:02:13.3]} 24... Qxe5 {[%clk
0:00:15.3]} 25. dxe5 {[%clk 0:02:14.2]} 25... Bf5 {[%clk 0:00:06.9]} 26. Rxc6
{[%clk 0:02:14.4]} 26... Rd8 {[%clk 0:00:07]} 27. f3 {[%clk 0:01:56.4]} 27...
Rd1+ {[%clk 0:00:05]} 28. Kf2 {[%clk 0:01:56.6]} 28... Rd2+ {[%clk 0:00:05.9]}
29. Kg3 {[%clk 0:01:56.2]} 29... Rxa2 {[%clk 0:00:06.8]} 30. Rc7 {[%clk
0:01:56.1]} 30... Kf8 {[%clk 0:00:04.4]} 31. Nb7 {[%clk 0:01:55.1]} 31... a4
{[%clk 0:00:02.9]} 32. Nd6 {[%clk 0:01:55.4]} 32... Be6 {[%clk 0:00:03.2]} 33.
Ra7 {[%clk 0:01:55.3]} 33... a3 {[%clk 0:00:03.2]} 34. h4 {[%clk 0:01:52.9]}
34... Ra1 {[%clk 0:00:02.9]} 35. h5 {[%clk 0:01:45.8]} 35... a2 {[%clk
0:00:03.2]} 36. h6 {[%clk 0:01:43.9]} 36... f5 {[%clk 0:00:01.6]} 37. exf6
{[%clk 0:01:43.2]} 37... Rb1 {[%clk 0:00:01.5]} 38. Ra8+ {[%clk 0:01:42.8]}
38... Bc8 {[%clk 0:00:00.6]} 39. Rxc8# {[%clk 0:01:43]} 1-0